bitfinex-derivatives/quotes_SOLF0:USTF0_20260207
["timestamp","ask_amount","ask_price","bid_price","bid_amount"]
[1770475212751,12.68024683,85.94,85.861,24.2927039]
[1770475212945,26.16423313,85.96,85.861,24.2927039]
[1770475213150,13.4839863,85.959,85.861,24.2927039]
[1770475213450,12.68024683,85.94,85.863,24.2927039]
[1770475213857,13.43824807,85.939,85.863,24.2927039]
[1770475214150,12.68024683,85.9,85.84,24.2927039]
[1770475214353,12.68024683,85.88,85.818,24.2927039]
[1770475215257,26.33953657,85.88,85.818,24.2927039]
[1770475215454,10.4889,85.898,85.818,24.2927039]
[1770475215455,12.68024683,85.9,85.818,24.2927039]
[1770475215955,12.68024683,85.87,85.818,24.2927039]
[1770475216950,12.68024683,85.85,85.785,24.2927039]
[1770475217155,12.68024683,85.87,85.791,24.2927039]
[1770475217550,13.04957955,85.89,85.795,24.2927039]
[1770475217948,13.04957955,85.89,85.803,10.5004]
[1770475218257,12.68024683,85.9,85.811,24.2927039]
[1770475218657,15.78898138,85.91,85.827,24.2927039]
[1770475219458,15.78898138,85.91,85.83,24.2927039]
[1770475220060,12.68024683,85.9,85.83,24.2927039]
[1770475220563,12.68024683,85.9,85.832,24.2927039]
[1770475221356,12.68024683,85.9,85.834,24.2927039]
[1770475222258,16.17816664,85.933,85.84,24.2927039]
[1770475222461,16.17816664,85.933,85.851,24.2927039]
[1770475223764,12.68024683,85.92,85.858,24.2927039]
[1770475223957,16.5123581,85.919,85.831,24.2927039]
[1770475224463,12.68024683,85.9,85.835,24.2927039]
[1770475225059,12.68024683,85.9,85.81,12.68024683]
[1770475225060,12.68024683,85.9,85.841,24.2927039]
[1770475226864,12.68024683,85.9,85.842,24.2927039]
[1770475227467,12.68024683,85.9,85.76,34.99]
[1770475227468,17.15117278,85.899,85.821,24.2927039]
[1770475227764,12.68024683,85.9,85.821,24.2927039]
[1770475227962,12.68024683,85.93,85.851,24.2927039]
[1770475228764,17.33934132,85.941,85.851,24.2927039]
[1770475228962,17.33934132,85.941,85.879,10.491]
[1770475229167,12.68024683,85.95,85.88,24.2927039]
[1770475229370,12.59087828,85.94,85.88,24.2927039]
[1770475230677,10.4839,85.939,85.88,24.2927039]
[1770475230867,12.59087828,85.94,85.88,24.2927039]
[1770475231266,12.59087828,85.96,85.882,24.2927039]
[1770475231770,1.63170353,85.962,85.9,24.2927039]
[1770475231976,1.63170353,85.962,85.901,24.2927039]
[1770475232274,3.53e-06,85.962,85.901,24.2927039]
[1770475232777,3.53e-06,85.962,85.931,24.2927039]
[1770475233774,3.53e-06,85.962,85.938,34.7766039]
[1770475233970,3.53e-06,85.962,85.939,24.2927039]
[1770475234271,3.53e-06,85.962,85.942,24.2927039]
[1770475235068,3.53e-06,85.962,85.945,24.2927039]
[1770475235271,3.53e-06,85.962,85.951,24.2927039]
[1770475235772,3.53e-06,85.962,85.9,12.59087828]
[1770475235773,3.53e-06,85.962,85.901,24.2927039]
[1770475236072,3.53e-06,85.962,85.9,12.59087828]
[1770475236073,3.53e-06,85.962,85.93,26.70395107]
[1770475236770,3.53e-06,85.962,85.95,26.70395107]
[1770475237176,3.53e-06,85.962,85.96,10.4811]
[1770475237373,3.53e-06,85.962,85.95,26.70395107]
[1770475237678,3.53e-06,85.962,85.912,26.70395107]
[1770475237976,3.53e-06,85.962,85.909,10.4874]
[1770475238174,3.53e-06,85.962,85.892,26.70395107]
[1770475238876,3.53e-06,85.962,85.907,10.4877]
[1770475241078,3.53e-06,85.962,85.907,37.19165107]
[1770475241278,3.53e-06,85.962,85.907,26.70395107]
[1770475241673,12.59087828,85.95,85.907,26.70395107]
[1770475241868,12.59087828,85.95,85.828,20.9947]
[1770475241869,12.59087828,85.95,85.888,26.70395107]
[1770475243170,3.53e-06,85.962,85.9,26.70395107]
[1770475243684,3.53e-06,85.962,85.909,26.70395107]
[1770475244275,21.65657132,85.962,85.89,26.70395107]
[1770475244772,21.65657132,85.962,85.859,163.2336]
[1770475244773,3.53e-06,85.962,85.936,10.4842]
[1770475244971,3.53e-06,85.962,85.92,26.70395107]
[1770475245478,3.53e-06,85.962,85.929,26.70395107]
[1770475246075,3.53e-06,85.962,85.932,10.4846]
[1770475246682,3.53e-06,85.962,85.929,26.70395107]
[1770475247171,3.53e-06,85.962,85.921,10.4859]
[1770475247774,3.53e-06,85.962,85.908,10.4875]
[1770475247975,12.59087828,85.95,85.891,26.70395107]
[1770475248579,22.49827503,85.949,85.891,26.70395107]
[1770475249079,12.59087828,85.95,85.891,26.70395107]
[1770475251280,12.59087828,85.95,85.893,26.70395107]
[1770475252180,3.53e-06,85.962,85.88,12.59087828]
[1770475252181,3.53e-06,85.962,85.91,26.70395107]
[1770475253375,3.53e-06,85.962,85.921,10.486]
[1770475254078,3.53e-06,85.962,85.911,10.4871]
[1770475254384,3.53e-06,85.962,85.911,26.70395107]
[1770475254583,12.59087828,85.96,85.911,26.70395107]
[1770475255671,12.59087828,85.96,85.901,10.4884]
[1770475255876,23.51782671,85.959,85.893,26.70395107]
[1770475256973,23.51782671,85.959,85.898,10.4887]
[1770475257179,23.51782671,85.959,85.898,37.19265107]
[1770475257790,23.51782671,85.959,85.9,10.4885]
[1770475258081,33.99932671,85.959,85.899,26.70395107]
[1770475258387,23.91566768,85.939,85.816,14.3595729]
[1770475258683,23.91566768,85.939,85.753,213.74682955]
[1770475258684,12.59087828,85.89,85.838,26.70395107]
[1770475259877,12.59087828,85.87,85.814,26.70395107]
[1770475260181,10.4907,85.883,85.814,26.70395107]
[1770475260378,23.39885342,85.886,85.814,26.70395107]
[1770475260685,23.39885342,85.886,85.816,26.70395107]
[1770475260888,12.59087828,85.9,85.821,26.70395107]
[1770475261179,10.4889,85.897,85.823,26.70395107]
[1770475261883,10.49,85.889,85.823,26.70395107]
[1770475262081,12.59087828,85.88,85.823,26.70395107]
[1770475262280,23.23654035,85.889,85.823,26.70395107]
[1770475262677,23.23654035,85.889,85.825,26.70395107]
[1770475263184,23.23654035,85.889,85.83,26.70395107]
[1770475264682,12.59087828,85.88,85.83,26.70395107]
[1770475265485,23.23654035,85.889,85.83,26.70395107]
[1770475265683,12.59087828,85.9,85.83,26.70395107]
[1770475265982,12.59087828,85.91,85.831,26.70395107]
[1770475266190,12.59087828,85.92,85.831,26.70395107]
[1770475266576,24.67556682,85.917,85.843,29.4520746]
[1770475266787,24.79282896,85.936,85.85,12.59087828]
[1770475266984,12.59087828,85.93,85.851,29.4520746]
[1770475267488,12.59087828,85.93,85.866,29.4520746]
[1770475267687,37.25413511,85.93,85.866,29.4520746]
[1770475268191,24.66325683,85.928,85.866,29.4520746]
[1770475271589,12.59087828,85.93,85.869,27.05936857]
[1770475272587,25.42714985,85.943,85.869,27.05936857]
[1770475272891,25.42714985,85.943,85.875,10.4915]
[1770475273094,25.42714985,85.943,85.876,27.05936857]
[1770475273993,3.53e-06,85.962,85.876,27.05936857]
[1770475273994,8.4187167,85.958,85.876,27.05936857]
[1770475274189,12.59087828,85.95,85.876,27.05936857]
[1770475274491,34.00486067,85.949,85.876,27.05936857]
[1770475274696,25.58191692,85.949,85.891,10.4897]
[1770475275591,25.58191692,85.949,85.851,20.9891]
[1770475275592,12.59087828,85.95,85.893,27.05936857]
[1770475276296,3.53e-06,85.962,85.893,27.05936857]
[1770475276888,3.53e-06,85.962,85.915,27.05936857]
[1770475278395,3.53e-06,85.962,85.935,10.4843]
[1770475279193,3.53e-06,85.962,85.935,27.05936857]
[1770475279498,3.53e-06,85.962,85.901,27.05936857]
[1770475279699,3.53e-06,85.962,85.918,27.05936857]
[1770475280391,3.53e-06,85.962,85.923,10.4857]
[1770475281490,3.53e-06,85.962,85.931,10.4847]
[1770475281798,3.53e-06,85.962,85.918,27.05936857]
[1770475282396,3.53e-06,85.962,85.926,10.4853]
[1770475282594,3.53e-06,85.962,85.926,27.05936857]
[1770475283800,3.53e-06,85.962,85.936,10.4842]
[1770475285895,3.53e-06,85.962,85.927,10.4852]
[1770475286092,3.53e-06,85.962,85.907,27.05936857]
[1770475286295,12.59087828,85.95,85.881,27.05936857]
[1770475286496,26.29003712,85.948,85.881,27.05936857]
[1770475286997,26.38202556,85.929,85.855,27.05936857]
[1770475287202,28.89126396,85.859,85.741,21.65391598]
[1770475287502,12.59087828,85.83,85.708,163.5204]
[1770475287696,12.59087828,85.85,85.75,12.59087828]
[1770475287903,12.59087828,85.85,85.77,12.59087828]
[1770475288194,12.59087828,85.85,85.7,12.59087828]
[1770475288195,28.89126396,85.878,85.79,12.59087828]
[1770475288398,28.89126396,85.899,85.81,12.59087828]
[1770475288594,28.89126396,85.897,85.81,12.59087828]
[1770475288800,28.89126396,85.897,85.812,10.4992]
[1770475288996,41.48214224,85.88,85.79,12.59087828]
[1770475289200,12.59087828,85.86,85.791,27.05936857]
[1770475289897,12.59087828,85.86,85.795,27.05936857]
[1770475290100,28.89126396,85.879,85.8,12.59087828]
[1770475290398,28.89126396,85.879,85.801,27.05936857]
[1770475290603,28.89126396,85.879,85.816,27.05936857]
[1770475291198,28.89126396,85.898,85.828,27.05936857]
[1770475291798,12.59954458,85.91,85.841,27.05936857]
[1770475292393,41.49080854,85.89,85.823,27.05936857]
[1770475292590,28.89126396,85.889,85.823,27.05936857]
[1770475295097,28.89126396,85.889,85.81,12.59954458]
[1770475295404,28.89126396,85.889,85.811,27.05936857]
[1770475295803,12.59954458,85.87,85.811,27.05936857]
[1770475296097,28.89126396,85.889,85.811,27.05936857]
[1770475296303,28.71941418,85.879,85.811,27.05936857]
[1770475297296,28.71941418,85.859,85.789,28.61129532]
[1770475298199,28.71941418,85.859,85.792,28.61129532]
[1770475298504,12.59954458,85.86,85.792,28.61129532]
[1770475299798,12.59954458,85.86,85.796,28.61129532]
[1770475300604,28.71941418,85.877,85.806,28.61129532]
[1770475301098,12.59954458,85.88,85.8,12.59954458]
[1770475301099,12.59954458,85.88,85.826,28.61129532]
[1770475302108,12.59954458,85.88,85.832,10.4968]
[1770475303202,28.71941418,85.896,85.836,28.61129532]
[1770475303707,28.71941418,85.896,85.846,10.495]
[1770475304005,28.71941418,85.896,85.836,28.61129532]
[1770475304203,12.59954458,85.9,85.836,28.61129532]
[1770475304902,12.59954458,85.9,85.859,10.4935]
[1770475306612,12.59954458,85.9,85.8,12.59954458]
[1770475306613,41.31895876,85.88,85.817,28.61129532]
[1770475307013,28.71941418,85.897,85.866,10.4927]
[1770475307512,9.66551418,85.897,85.866,10.4927]
[1770475307705,9.66551418,85.897,85.838,28.61129532]
[1770475307907,9.66551418,85.897,85.855,10.494]
[1770475309006,4.458e-05,85.88,85.855,10.494]
[1770475311702,4.458e-05,85.88,85.844,10.4954]
[1770475313509,28.6719652,85.913,85.838,28.61129532]
[1770475313715,12.59954458,85.89,85.838,28.61129532]
[1770475314110,12.59954458,85.89,85.845,10.4953]
[1770475314710,28.71941418,85.889,85.819,28.61129532]
[1770475315317,28.71941418,85.907,85.85,28.61129532]
[1770475315817,28.71941418,85.907,85.853,28.61129532]
[1770475316420,28.71941418,85.907,85.864,10.4929]
[1770475317412,12.59954458,85.92,85.873,28.61129532]
[1770475317618,12.59954458,85.94,85.873,28.61129532]
[1770475318010,12.59954458,85.94,85.897,10.4888]
[1770475318408,12.59954458,85.94,85.889,28.61129532]
[1770475318819,28.71941418,85.939,85.889,28.61129532]
[1770475319117,12.59954458,85.92,85.872,28.61129532]
[1770475319319,28.71941418,85.919,85.831,28.61129532]
[1770475319509,12.59954458,85.9,85.831,28.61129532]
[1770475319914,12.59954458,85.9,85.844,28.61129532]
[1770475320419,28.71941418,85.899,85.845,10.4952]
[1770475321313,28.71941418,85.899,85.787,34.99]
[1770475321314,28.71941418,85.879,85.808,28.61129532]
[1770475321515,12.59954458,85.86,85.808,28.61129532]
[1770475322525,12.59954458,85.86,85.69,28.80223684]
[1770475322526,28.71941418,85.839,85.722,28.61129532]
[1770475322713,28.71941418,85.839,85.644,163.6433]
[1770475322714,12.59954458,85.79,85.758,327.65047795]
[1770475322913,8.78374899,85.841,85.758,327.65047795]
[1770475322914,8.78374899,85.849,85.759,80.0373874]
[1770475323128,12.59954458,85.82,85.759,80.0373874]
[1770475324118,12.59954458,85.82,85.758,327.65047795]
[1770475324119,8.78374899,85.85,85.761,80.04458384]
[1770475324327,12.59954458,85.83,85.761,80.04458384]
[1770475325027,12.59954458,85.83,85.758,327.65047795]
[1770475325028,12.59954458,85.83,85.764,80.04458384]
[1770475325226,8.78374899,85.872,85.764,80.04458384]
[1770475325428,12.59954458,85.85,85.764,80.04458384]
[1770475325822,12.59954458,85.85,85.788,10.5022]
[1770475327722,12.59954458,85.85,85.787,80.01799494]
[1770475328329,12.59954458,85.83,85.769,80.01799494]
[1770475328528,8.76312454,85.829,85.769,80.01799494]
[1770475328827,8.76312454,85.828,85.769,80.01799494]
[1770475329026,8.76312454,85.827,85.769,80.01799494]
[1770475329222,8.76312454,85.826,85.769,80.01799494]
[1770475329422,12.59954458,85.81,85.758,327.65047795]
[1770475329618,12.59954458,85.82,85.759,80.01799494]
[1770475329832,12.59954458,85.8,85.758,327.65047795]
[1770475330021,8.7658885,85.799,85.758,327.65047795]
[1770475330223,12.59954458,85.8,85.758,327.65047795]
[1770475330423,8.76838002,85.799,85.758,327.65047795]
[1770475330729,8.76838002,85.798,85.758,327.65047795]
[1770475330929,12.59954458,85.8,85.758,327.65047795]
[1770475332630,10.4969,85.832,85.759,80.00085295]
[1770475332631,12.59954458,85.82,85.759,80.00085295]
[1770475332829,8.76509471,85.819,85.759,80.00085295]
[1770475333024,8.76509471,85.818,85.759,80.00085295]
[1770475333223,8.76509471,85.817,85.759,80.00085295]
[1770475333525,12.59954458,85.8,85.759,80.00085295]
[1770475333728,8.76509471,85.799,85.759,80.00085295]
[1770475333930,12.59954458,85.8,85.759,80.00085295]
[1770475335028,12.59954458,85.82,85.759,80.00085295]
[1770475335332,8.75610868,85.819,85.759,80.00085295]
[1770475335533,8.75610868,85.818,85.759,80.00085295]
[1770475335721,8.75610868,85.817,85.759,80.00085295]
[1770475336029,10.499,85.815,85.759,80.00085295]
[1770475336333,12.59954458,85.82,85.759,80.00085295]
[1770475336531,8.74833925,85.838,85.773,80.00085295]
[1770475336830,8.74833925,85.837,85.773,80.00085295]
[1770475337128,12.59954458,85.85,85.782,80.00085295]
[1770475337332,8.75063236,85.849,85.782,80.00085295]
[1770475337634,8.75063236,85.848,85.782,80.00085295]
[1770475337828,12.59954458,85.85,85.782,80.00085295]
[1770475337829,8.75063236,85.847,85.782,80.00085295]
[1770475338132,8.75063236,85.846,85.784,80.00085295]
[1770475338328,8.75063236,85.845,85.784,80.00085295]
[1770475338524,8.75063236,85.844,85.784,80.00085295]
[1770475338724,8.75063236,85.843,85.784,80.00085295]
[1770475338926,10.495,85.848,85.789,80.00085295]
[1770475339123,8.75061598,85.847,85.789,80.00085295]
[1770475339328,8.75061598,85.846,85.789,80.00085295]
[1770475339530,10.4955,85.844,85.789,80.00085295]
[1770475339734,8.75061598,85.843,85.789,80.00085295]
[1770475339923,8.75061598,85.842,85.789,80.00085295]
[1770475340234,10.4938,85.857,85.791,80.00085295]
[1770475340429,8.75247589,85.856,85.791,80.00085295]
[1770475340634,8.75247589,85.855,85.791,80.00085295]
[1770475340832,8.75247589,85.854,85.791,80.00085295]
[1770475341028,8.75247589,85.853,85.791,80.00085295]
[1770475341228,10.4925,85.868,85.794,80.00085295]
[1770475341428,8.75491172,85.867,85.794,80.00085295]
[1770475341624,12.59954458,85.87,85.794,80.00085295]
[1770475341625,8.75491172,85.866,85.794,80.00085295]
[1770475341830,12.59954458,85.87,85.801,80.00085295]
[1770475342132,8.75270677,85.869,85.821,90.49895295]
[1770475342336,8.75270677,85.868,85.821,90.49895295]
[1770475342529,10.4902,85.887,85.821,90.49895295]
[1770475342729,8.75286218,85.886,85.821,90.49895295]
[1770475342930,8.75286218,85.885,85.821,90.49895295]
[1770475343132,8.75286218,85.884,85.83,80.00085295]
[1770475343338,12.59954458,85.89,85.83,80.00085295]
[1770475343529,8.76144668,85.889,85.83,80.00085295]
[1770475343729,12.59954458,85.89,85.83,80.00085295]
[1770475343932,8.76128035,85.889,85.83,80.00085295]
[1770475344138,12.59954458,85.89,85.83,80.00085295]
[1770475344738,12.59954458,85.89,85.832,80.00085295]
[1770475345327,8.76049106,85.897,85.835,80.00085295]
[1770475345533,8.76156186,85.909,85.835,80.00085295]
[1770475345734,8.76156186,85.908,85.835,80.00085295]
[1770475346038,8.76156186,85.907,85.835,80.00085295]
[1770475346238,10.489,85.897,85.838,80.00085295]
[1770475347235,12.59954458,85.89,85.838,80.00085295]
[1770475347837,12.59954458,85.89,85.839,10.496]
[1770475348037,12.59954458,85.89,85.84,80.00085295]
[1770475348240,8.7610694,85.906,85.84,80.00085295]
[1770475348436,8.7610694,85.905,85.84,80.00085295]
[1770475348641,8.7610694,85.904,85.84,80.00085295]
[1770475348946,8.7610694,85.936,85.861,80.00085295]
[1770475349134,8.7610694,85.935,85.861,80.00085295]
[1770475349335,8.7610694,85.934,85.861,80.00085295]
[1770475349535,8.7610694,85.933,85.881,90.49165295]
[1770475349735,8.7610694,85.939,85.881,90.49165295]
[1770475349939,8.7610694,85.938,85.881,90.49165295]
[1770475350241,12.59954458,85.94,85.891,10.4896]
[1770475350436,8.7610694,85.955,85.891,80.00085295]
[1770475350632,8.7610694,85.959,85.891,80.00085295]
[1770475350840,8.7610694,85.958,85.891,80.00085295]
[1770475351042,8.7610694,85.957,85.891,80.00085295]
[1770475351337,12.59954458,85.96,85.891,80.00085295]
[1770475351730,12.59954458,85.96,85.901,80.00085295]
[1770475352943,12.59954458,85.96,85.904,90.48895295]
[1770475353137,10.4815,85.958,85.851,80.00085295]
[1770475353443,12.59480304,85.93,85.871,80.00085295]
[1770475353945,10.4853,85.927,85.871,80.00085295]
[1770475355040,12.59480304,85.93,85.871,80.00085295]
[1770475355248,12.59480304,85.95,85.871,80.00085295]
[1770475355742,12.59480304,85.92,85.871,80.00085295]
[1770475355945,12.59480304,85.94,85.871,80.00085295]
[1770475356731,12.59480304,85.94,85.892,10.4895]
[1770475359549,116.0,85.939,85.904,10.488]
[1770475360444,10.4814,85.959,85.904,10.488]
[1770475360740,10.4814,85.959,85.895,79.97640798]
[1770475361744,10.4814,85.959,85.899,79.97640798]
[1770475361942,10.4826,85.95,85.899,79.97640798]
[1770475363044,12.59480304,85.94,85.883,79.97640798]
[1770475363233,12.59480304,85.94,85.86,12.59480304]
[1770475363234,12.59480304,85.96,85.885,79.97640798]
[1770475363645,10.4824,85.951,85.885,79.97640798]
[1770475364645,10.4834,85.943,85.89,79.97640798]
[1770475365244,10.483,85.946,85.89,79.97640798]
[1770475366552,116.0,85.945,85.89,79.97640798]
[1770475367245,10.4835,85.942,85.89,90.46610798]
[1770475367446,116.0,85.941,85.89,90.46610798]
[1770475367652,10.484,85.938,85.89,79.97640798]
[1770475368954,34.99,85.965,85.873,79.97640798]
[1770475368955,12.59480304,85.92,85.873,79.97640798]
[1770475369147,116.0,85.919,85.873,79.97640798]
[1770475369346,116.0,85.919,85.857,79.97640798]
[1770475370755,10.4872,85.912,85.86,79.97640798]
[1770475372850,10.4872,85.912,85.86,90.46980798]
[1770475373048,10.4872,85.912,85.86,79.97640798]
[1770475373247,10.4893,85.894,85.86,79.97640798]
[1770475373650,10.4905,85.885,85.845,79.97640798]
[1770475373845,116.0,85.899,85.845,79.97640798]
[1770475374056,116.0,85.899,85.848,79.97640798]
[1770475374451,12.59480304,85.91,85.848,79.97640798]
[1770475374756,12.59480304,85.89,85.848,79.97640798]
[1770475375752,21.47702363,85.947,85.848,79.97640798]
[1770475375753,10.4884,85.902,85.848,79.97640798]
[1770475375956,12.59480304,85.91,85.848,79.97640798]
[1770475377057,12.59480304,85.91,85.85,79.97640798]
[1770475378162,8.7610694,85.909,85.85,79.97640798]
[1770475378451,8.7610694,85.908,85.85,79.97640798]
[1770475378652,10.4863,85.919,85.853,79.97640798]
[1770475379250,8.69208794,85.918,85.853,79.97640798]
[1770475379455,10.4863,85.919,85.853,79.97640798]
[1770475379656,124.70031175,85.918,85.853,79.97640798]
[1770475379857,116.0,85.918,85.867,79.97640798]
[1770475380260,8.70721549,85.917,85.867,79.97640798]
[1770475380559,8.70721549,85.916,85.872,79.97640798]
[1770475380762,116.0,85.918,85.872,79.97640798]
[1770475381953,116.0,85.938,85.877,79.97640798]
[1770475382152,8.7176012,85.937,85.877,79.97640798]
[1770475382354,124.7176012,85.936,85.879,79.97640798]
[1770475382559,49.67451003,85.994,85.85,12.59480304]
[1770475382560,10.72587486,85.96,85.891,22.5457913]
[1770475382862,23.3206779,85.97,85.891,22.5457913]
[1770475383061,10.72587486,85.968,85.891,22.5457913]
[1770475383262,12.59480304,85.97,85.891,22.5457913]
[1770475383459,10.77764942,85.968,85.902,22.5457913]
[1770475383956,12.59480304,85.97,85.902,22.5457913]
[1770475383957,10.77764942,85.959,85.902,22.5457913]
[1770475384157,10.48100353,85.962,85.902,22.5457913]
[1770475384555,10.77764942,85.961,85.902,22.5457913]
[1770475384857,3.53e-06,85.962,85.903,22.5457913]
[1770475385252,10.4811,85.961,85.906,22.5457913]
[1770475385453,10.77764942,85.956,85.906,22.5457913]
[1770475385761,10.77764942,85.949,85.906,22.5457913]
[1770475385961,10.77764942,85.958,85.906,22.5457913]
[1770475386158,3.53e-06,85.962,85.906,22.5457913]
[1770475386356,3.53e-06,85.962,85.918,10.4863]
[1770475386562,3.53e-06,85.962,85.919,19.72864179]
[1770475387058,3.53e-06,85.962,85.921,19.72864179]
[1770475389563,12.59480304,85.95,85.884,19.70140641]
[1770475389964,3.53e-06,85.962,85.884,19.70140641]
[1770475390563,10.77764942,85.96,85.896,19.71673436]
[1770475391061,10.77764942,85.959,85.896,19.71673436]
[1770475391269,12.59480304,85.95,85.896,19.71673436]
[1770475392574,10.77764942,85.947,85.898,20.09372856]
[1770475392768,10.77764942,85.945,85.898,20.09372856]
[1770475393070,10.77764942,85.944,85.898,20.09372856]
[1770475393276,10.81742524,85.944,85.898,20.09372856]
[1770475394476,8.64324736,85.943,85.898,20.09372856]
[1770475394676,10.81742524,85.936,85.898,20.09372856]
[1770475394876,8.64324736,85.935,85.898,20.09372856]
[1770475395076,8.64324736,85.934,85.898,20.09372856]
[1770475395277,8.64324736,85.933,85.898,20.09372856]
[1770475395478,12.59480304,85.93,85.882,19.08638957]
[1770475395775,8.64324736,85.929,85.882,19.08638957]
[1770475395971,8.64324736,85.928,85.884,19.42818445]
[1770475396172,8.64324736,85.927,85.884,19.42818445]
[1770475396478,4.736e-05,85.926,85.886,19.43656111]
[1770475396679,10.81742524,85.949,85.886,19.43656111]
[1770475396878,12.59480304,85.95,85.886,19.43656111]
[1770475397071,23.41222828,85.95,85.886,19.43656111]
[1770475397373,23.41222828,85.95,85.87,12.59480304]
[1770475397374,12.59480304,85.95,85.907,10.4877]
[1770475397566,10.81742524,85.961,85.908,19.63604706]
[1770475397776,3.53e-06,85.962,85.908,19.63604706]
[1770475398782,3.53e-06,85.962,85.927,10.4852]
[1770475398969,3.53e-06,85.962,85.913,19.64355484]
[1770475399768,3.53e-06,85.962,85.926,19.65540872]
[1770475400670,3.53e-06,85.962,85.93,19.66272957]
[1770475401876,3.53e-06,85.962,85.932,10.4846]
[1770475402184,3.53e-06,85.962,85.933,19.82687547]
[1770475404480,12.59480304,85.96,85.918,19.77991134]
[1770475404683,12.59480304,85.96,85.902,19.77991134]
[1770475405082,12.59480304,85.94,85.902,19.77991134]
[1770475407679,12.59480304,85.94,85.887,19.62673238]
[1770475408185,10.4839,85.939,85.887,19.62673238]
[1770475408594,8.58829993,85.938,85.887,19.62673238]
[1770475408784,8.58829993,85.937,85.887,19.62673238]
[1770475409087,8.58829993,85.936,85.887,19.62673238]
[1770475409280,8.58829993,85.935,85.887,19.62673238]
[1770475409479,8.58829993,85.934,85.888,19.72076651]
[1770475409684,8.58829993,85.933,85.888,19.72076651]
[1770475409981,8.59037149,85.932,85.888,19.72076651]
[1770475410178,8.59037149,85.931,85.888,19.72076651]
[1770475410376,8.59037149,85.93,85.888,19.72076651]
[1770475410583,8.59037149,85.929,85.888,19.72076651]
[1770475410890,8.59037149,85.928,85.888,19.72076651]
[1770475411088,12.59480304,85.94,85.888,19.72076651]
[1770475411290,8.59065648,85.939,85.888,19.72076651]
[1770475411586,8.59065648,85.938,85.888,19.72076651]
[1770475411886,8.59065648,85.937,85.888,19.72076651]
[1770475412088,12.59480304,85.94,85.89,19.70234892]
[1770475412289,8.5912003,85.939,85.89,19.70234892]
[1770475412486,8.5912003,85.938,85.89,19.70234892]
[1770475412690,12.59480304,85.94,85.89,19.70234892]
[1770475412883,8.5912003,85.939,85.89,19.70234892]
[1770475413085,12.59480304,85.96,85.89,19.70234892]
[1770475413285,8.5919056,85.959,85.89,19.70234892]
[1770475413488,8.5919056,85.958,85.89,19.70234892]
[1770475413690,8.5919056,85.957,85.895,19.67993025]
[1770475413892,12.58419051,85.94,85.895,19.67993025]
[1770475414395,12.58419051,85.94,85.851,19.67993025]
[1770475414693,8.59357782,85.939,85.851,19.67993025]
[1770475414897,8.59357782,85.938,85.851,19.67993025]
[1770475415094,8.59357782,85.937,85.851,19.67993025]
[1770475415391,8.59357782,85.936,85.851,19.67993025]
[1770475415583,8.59357782,85.935,85.851,19.67993025]
[1770475415785,10.4858,85.923,85.864,19.74603166]
[1770475416189,10.81742524,85.947,85.864,19.74603166]
[1770475416383,12.58419051,85.94,85.864,19.74603166]
[1770475416589,10.4841,85.937,85.881,19.75804811]
[1770475416789,8.59804707,85.936,85.881,19.75804811]
[1770475416984,10.81742524,85.947,85.881,19.75804811]
[1770475416985,10.485,85.93,85.881,19.75804811]
[1770475417194,12.58419051,85.92,85.881,19.75804811]
[1770475418689,12.58419051,85.9,85.852,19.80935414]
[1770475419798,12.58419051,85.9,85.851,19.82565508]
[1770475420103,12.58419051,85.92,85.851,19.82565508]
[1770475420299,8.57064461,85.919,85.879,10.4911]
[1770475420602,8.57064461,85.918,85.879,10.4911]
[1770475420788,8.57064461,85.917,85.879,10.4911]
[1770475420990,12.58419051,85.92,85.888,10.49]
[1770475421297,12.58419051,85.94,85.889,19.83130245]
[1770475421492,8.57451476,85.939,85.889,19.83130245]
[1770475421700,12.58419051,85.94,85.889,19.83130245]
[1770475421701,8.57451476,85.938,85.889,19.83130245]
[1770475421901,8.57451476,85.937,85.889,19.83130245]
[1770475422103,8.57451476,85.936,85.89,10.4897]
[1770475422303,8.57451476,85.935,85.89,10.4897]
[1770475422600,8.57451476,85.934,85.89,10.4897]
[1770475422801,8.57451476,85.933,85.89,10.4897]
[1770475423096,8.57451476,85.932,85.889,19.83130245]
[1770475423300,8.57451476,85.931,85.889,19.83130245]
[1770475423501,8.57451476,85.93,85.889,19.83130245]
[1770475423705,8.57451476,85.929,85.889,19.83130245]
[1770475423904,8.57451476,85.928,85.889,19.83130245]
[1770475424197,8.57451476,85.927,85.889,19.83130245]
[1770475424503,8.57451476,85.926,85.889,19.83130245]
[1770475424691,8.57451476,85.925,85.889,30.32120245]
[1770475424897,8.57451476,85.924,85.889,30.32120245]
[1770475425204,8.57451476,85.923,85.889,30.32120245]
[1770475425406,12.58419051,85.94,85.889,30.32120245]
[1770475425704,8.58696362,85.939,85.889,30.32120245]
[1770475425904,8.58696362,85.938,85.889,30.32120245]
[1770475426101,8.58696362,85.937,85.889,30.32120245]
[1770475426308,8.58696362,85.936,85.889,30.32120245]
[1770475426604,8.58696362,85.935,85.89,19.81978915]
[1770475426807,8.58696362,85.934,85.89,19.81978915]
[1770475426997,8.58696362,85.933,85.89,19.81978915]
[1770475427197,8.58696362,85.932,85.89,19.81978915]